Cogmind - Beta 14 @@@ ROGUE MODE // 2024.12.30 @ 01:37:36 Player: Ty Result: Destroyed by S-10 Pest with Light Assault Rifle Performance ------------- Evolutions (1) 500 Regions Visited (4) 800 Robots Destroyed (22) 110 Value Destroyed (651) 651 Prototype IDs (1) 20 Alien Tech Used (0) 0 Bonus (0) 0 TOTAL SCORE: 2081 Bonus ------- None Cogmind --------- Core Integrity 0/400 Matter 355/400 Energy 26/100 System Corruption 10% Temperature Cool (0) Movement Core (150) Ox2 Location -9/Mines Parts ------- > --- POWER (1) -------- (None) > --- PROPULSION (2) --- (None) > --- UTILITY (3) ------ Cooling System Medium Matter Pod Visual Processing Unit > --- WEAPON (3) ------- Faulty Advanced Beam Cannon > --- INVENTORY (5) ---- Light Treads Peak State ------------ > --- POWER ------------ Ion Engine > --- PROPULSION ------- Aluminum Leg Aluminum Leg > --- UTILITY ---------- Small Storage Unit Sensor Array Light Armor Plating > --- WEAPON ----------- Small Laser Spread Laser Mace > --- INVENTORY -------- Light Ion Engine Cooling System Medium Matter Pod [Rating: 11] Favorites ----------- Power Light Ion Engine Engine Light Ion Engine Propulsion Aluminum Leg Leg Aluminum Leg Wheel Wheel Utility Small Storage Unit Device Heat Sink Storage Small Storage Unit Processor Visual Processing Unit Protection Light Armor Plating Weapon Mace Energy Gun Spread Laser Energy Cannon Advanced Beam Cannon Special Weapon Mining Laser Impact Weapon Mace Build | -11 -10 -10 -9 -9 ------- Run | Yrd Mat Min Mat Min Slots Evolved 2 | . . . 2 . Power . | . . . . . Propulsion . | . . . . . Utility 1 | . . . 1 . Weapon 1 | . . . 1 . Parts Attached 39 | 5 . 14 15 5 Power 9 | 1 . 6 2 . Engine 9 | 1 . 6 2 . Core . | . . . . . Reactor . | . . . . . Propulsion 9 | 2 . 4 3 . Treads . | . . . . . Leg 5 | . . 2 3 . Wheel 4 | 2 . 2 . . Hover . | . . . . . Flight . | . . . . . Utility 9 | . . 2 4 3 Device 4 | . . . 3 1 Storage 2 | . . 1 . 1 Processor 2 | . . 1 . 1 Hackware . | . . . . . Protection 1 | . . . 1 . Artifact . | . . . . . Weapon 12 | 2 . 2 6 2 Energy Gun 9 | 2 . 2 5 . Energy Cannon 1 | . . . . 1 Ballistic Gun . | . . . . . Ballistic Cannon . | . . . . . Launcher . | . . . . . Special Weapon 1 | . . . . 1 Impact Weapon 1 | . . . 1 . Slashing Weapon . | . . . . . Piercing Weapon . | . . . . . Special Melee Weapon . | . . . . . Unidentified Prototypes 1 | . . . . 1 Corrupted Parts 1 | . . 1 . . System Corruption 3 | . . 3 . . Parts Lost 25 | . . 9 11 5 Power 5 | . . 2 3 . Propulsion 6 | . . 3 2 1 Utility 5 | . . 1 2 2 Weapon 9 | . . 3 4 2 Highest Loss Streak 5 | . . 5 4 5 To Critical Strikes 2 | . . 1 1 . Average Slot Usage (%) 61 | . 71 65 61 26 Engine 8 | . 14 13 5 . Leg 9 | . . 14 7 6 Wheel 7 | . 28 10 4 . Device 5 | . . . 8 6 Storage 7 | . . 2 11 2 Processor 2 | . . 9 . . Protection 2 | . . . 4 . Energy Gun 13 | . 28 15 12 . Impact Weapon 5 | . . . 8 6 Peak Build Rating 11 | 5 5 8 11 6 Average Rating 6 | 3 5 5 7 3 On Entrance 4 | . 5 5 4 6 Naked Turns 10 | . . . . 10 Heaviest Build 20 | 7 7 12 20 8 Greatest Support 20 | 20 20 20 20 10 Greatest Overweight (x) 1 | . . 1 1 . Average Overweight (x) . | . . . . . Largest Inventory Capacity 8 | 5 5 8 8 8 Average Capacity 6 | 5 5 5 8 5 Most Carried 8 | 4 4 5 8 7 Average Carried 4 | 1 2 1 5 5 Final Capacity 8 | 5 5 8 8 5 Final Carried 7 | 2 4 4 7 1 Class Distribution -------------------- 70% | Mutant 29% | Scavenger-Mutant Dominant Class ---------------- Mutant | -10/Materials Mutant | -10/Mines Mutant | -9/Materials Mutant | -9/Mines Resources | -11 -10 -10 -9 -9 ----------- Run | Yrd Mat Min Mat Min Matter Collected 582 | 244 6 99 233 . Remotely . | . . . . . Salvage Created 620 | 42 43 149 377 9 Parts 39 | 2 7 4 25 1 Haulers Intercepted . | . . . . . Recyclers Shooed . | . . . . . Parts Field Recycled . | . . . . . Retrieved Matter . | . . . . . Parts Self-Destructed . | . . . . . Prevented . | . . . . . Kills | -11 -10 -10 -9 -9 ------- Run | Yrd Mat Min Mat Min Combat Hostiles Destroyed 19 | 1 . 4 13 1 Melee 2 | . . . 2 . Guns 15 | 1 . 4 10 . Classes Destroyed 8 | 1 2 1 4 . Builder 1 | . . . 1 . Operator 1 | . 1 . . . Watcher 2 | . 1 . 1 . Swarmer 3 | . . . 2 1 Grunt 11 | 1 . 3 7 . Brawler 1 | . . . 1 . Sentry 3 | . . . 3 . Assembled 1 | . . 1 . . Best Kill Streak 6 | 1 2 2 6 1 Combat Bots Only 5 | 1 . 2 5 1 Max Kills in Single Turn 1 | 1 1 1 1 1 Gunslinging . | . . . . . Exploded . | . . . . . Melee 1 | . . . 1 . Uniques/NPCs Destroyed . | . . . . . Combat | -11 -10 -10 -9 -9 -------- Run | Yrd Mat Min Mat Min Hostile Shots Fired 216 | 1 . 71 72 72 Missed 51 | . . 20 13 18 Damage Taken 1948 | 12 . 719 777 440 Core 544 | . . 136 154 254 Absorbed by Shields . | . . . . . Core Remaining (%) 72 | 100 . 45 . . Volleys Fired 88 | 2 5 32 47 2 Largest 2 | 2 2 2 2 1 Hottest 115 | 80 80 105 115 100 Shots Fired 132 | 4 10 50 66 2 Gun 130 | 4 10 50 66 . Cannon . | . . . . . Launcher . | . . . . . Special 2 | . . . . 2 Kinetic . | . . . . . Thermal 86 | . . 18 66 2 Explosive . | . . . . . Electromagnetic 46 | 4 10 32 . . Robot Hit Streak 14 | 2 2 5 14 . Robot Miss Streak 6 | 1 5 6 6 2 Penetration Max . | . . . . . Secondary Targets 2 | . . . 2 . Max Gunslinging Chain 1 | . . . 1 . Shots Hit Robots 94 | 3 3 24 61 3 Core Hits 64 | 1 2 10 51 . Critical Kills . | . . . . . Critical Parts Destroyed . | . . . . . Critical Strikes 1 | . . 1 . . Corrupt 1 | . . 1 . . Melee Attacks 10 | . . . 4 6 Impact 10 | . . . 4 6 Slashing . | . . . . . Piercing . | . . . . . Sneak Attacks 2 | . . . 1 1 Combat Hostiles 1 | . . . . 1 Follow-up Attacks . | . . . . . Damage Inflicted 1478 | 40 58 349 902 129 Guns 1204 | 40 58 349 757 . Cannons . | . . . . . Explosions . | . . . . . Melee 274 | . . . 145 129 Ramming . | . . . . . Kinetic . | . . . . . Thermal 837 | . . 80 757 . Explosive . | . . . . . Electromagnetic 367 | 40 58 269 . . Impact 274 | . . . 145 129 Slashing . | . . . . . Piercing . | . . . . . Highest Corruption 10 | . . 7 10 10 Average Corruption 8 | . . 5 9 10 Corruption Purged . | . . . . . Corruption Blocked . | . . . . . Effects 16 | . . 2 12 2 Message Errors 5 | . . . 4 1 Matter Fused 3 | . . . 2 1 Heat Flow Errors 1 | . . . 1 . Energy Discharges 5 | . . 1 4 . Data Loss (minor) 2 | . . 1 1 . Overload Shots . | . . . . . Overflow Damage 98 | . . . 65 33 Projectiles . | . . . . . Explosions . | . . . . . Melee 98 | . . . 65 33 Knockbacks 1 | . . . . 1 Impact 1 | . . . . 1 Kinetic . | . . . . . Secondary . | . . . . . Self-Inflicted Damage . | . . . . . Shots . | . . . . . Rammed . | . . . . . Targets Rammed . | . . . . . Kicked . | . . . . . Crushed . | . . . . . Highest Temperature 508 | 42 36 136 508 . Average Temperature 114 | 23 15 60 174 . Received Heat Transfer 531 | 6 . 261 264 . Effects 8 | . . . 8 . Shutdowns 2 | . . . 2 . Energy Bleed 1 | . . . 1 . Matter Decay 1 | . . . 1 . Damage (minor) 1 | . . . 1 . Damage (major) 3 | . . . 3 . Siege Activations . | . . . . . Robots Corrupted 2 | . . . 1 1 Combat Hostiles 1 | . . . . 1 Parts Fried 6 | 1 . . 4 1 Impact Corruptions 7 | . . . 4 3 Robots Melted 1 | . . . 1 . Combat Hostiles 1 | . . . 1 . Parts Melted 1 | . . . 1 . Heat Transferred 1447 | . . 186 1261 . Parts Sabotaged . | . . . . . Parts Stolen . | . . . . . Parts Stripped . | . . . . . Power Chain Reactions . | . . . . . Alert | -11 -10 -10 -9 -9 ------- Run | Yrd Mat Min Mat Min Peak Influence 299 | 20 85 98 299 116 Initial 81 | . 13 33 22 81 Average 104 | 2 52 73 134 94 Maximum Alert Level 1 | . . . 1 . Low Security (%) 86 | 100 100 100 76 100 Level 1 13 | . . . 23 . Level 2 . | . . . . . Level 3 . | . . . . . Level 4 . | . . . . . Level 5 . | . . . . . High Security . | . . . . . Max Security . | . . . . . Squads Dispatched 3 | . 1 . 2 . Investigation . | . . . . . Extermination . | . . . . . Reinforcement 3 | . 1 . 2 . Assault . | . . . . . Garrison . | . . . . . Intercept . | . . . . . Searches Triggered . | . . . . . Construction Impeded . | . . . . . Haulers Reinforced . | . . . . . Active Scanning Responses . | . . . . . Cargo Convoy Interrupts . | . . . . . Stealth | -11 -10 -10 -9 -9 --------- Run | Yrd Mat Min Mat Min Distress Signals 2 | . . 1 1 . Communications Jammed . | . . . . . Distress Signals . | . . . . . Times Spotted 37 | 1 3 8 22 3 Peak Tracking Total 6 | 1 1 2 6 3 Tactical Retreats 6 | . . 3 3 . Traps | -11 -10 -10 -9 -9 ------- Run | Yrd Mat Min Mat Min Traps Triggered . | . . . . . Indirectly . | . . . . . Trap Hack Attempts . | . . . . . Triggered . | . . . . . Disarmed . | . . . . . Reprogrammed . | . . . . . Reused . | . . . . . Traps Extracted . | . . . . . Installed . | . . . . . Triggered . | . . . . . Machines | -11 -10 -10 -9 -9 ---------- Run | Yrd Mat Min Mat Min Machines Disabled 1 | . 1 . . . Max in Single Turn 1 | . 1 . . . Machines Repaired . | . . . . . Machines Dismantled . | . . . . . Machines Sabotaged . | . . . . . Overloaded Fab Kills . | . . . . . Hacking | -11 -10 -10 -9 -9 --------- Run | Yrd Mat Min Mat Min Machines Accessed 2 | . . . 2 . Terminals 2 | . . . 2 . Fabricators . | . . . . . Repair Stations . | . . . . . Recycling Units . | . . . . . Scanalyzers . | . . . . . Garrison Access . | . . . . . Total Hacks 4 | . . . 4 . Successful 3 | . . . 3 . Failed 1 | . . . 1 . Catastrophic . | . . . . . Database Lockouts . | . . . . . Manual . | . . . . . Terminals 4 | . . . 4 . Fabricators . | . . . . . Repair Stations . | . . . . . Recycling Units . | . . . . . Scanalyzers . | . . . . . Garrison Access . | . . . . . Terminal Hacks 3 | . . . 3 . Record 3 | . . . 3 . Fabricator Hacks . | . . . . . Repair Station Hacks . | . . . . . Recycling Unit Hacks . | . . . . . Scanalyzer . | . . . . . Garrison Access Hacks . | . . . . . Unauthorized Hacks . | . . . . . Terminals . | . . . . . Fabricators . | . . . . . Repair Stations . | . . . . . Recycling Units . | . . . . . Scanalyzers . | . . . . . Garrison Access . | . . . . . Data Cores Recovered 1 | . 1 . . . Used . | . . . . . Hacking Detections 1 | . . . 1 . Full Trace Events . | . . . . . Feedback Events . | . . . . . Feedback Blocked . | . . . . . Robot Schematics Acquired . | . . . . . Robots Built . | . . . . . Authchips . | . . . . . Time . | . . . . . Total Robot Build Rating . | . . . . . Part Schematics Acquired . | . . . . . Parts Built . | . . . . . Authchips . | . . . . . Time . | . . . . . Total Part Build Rating . | . . . . . Parts Repaired . | . . . . . Time . | . . . . . Parts Recycled . | . . . . . Recycled Matter . | . . . . . Retrieved Matter . | . . . . . Retrieved Components . | . . . . . Parts Scanalyzed . | . . . . . Part Schematics Acquired . | . . . . . Parts Damaged . | . . . . . Bothacking | -11 -10 -10 -9 -9 ------------ Run | Yrd Mat Min Mat Min Used RIF Installer . | . . . . . Robots Hacked . | . . . . . Non-combat . | . . . . . Combat . | . . . . . Robot Hacks Applied . | . . . . . Relay Couplers Released . | . . . . . Fabnet Peak Effective % . | . . . . . Robots Rewired . | . . . . . Allies Hacked . | . . . . . Hacks Repelled . | . . . . . Allies | -11 -10 -10 -9 -9 -------- Run | Yrd Mat Min Mat Min Total Allies . | . . . . . Largest Group . | . . . . . Highest-Rated Group . | . . . . . Highest-Rated Ally . | . . . . . Total Orders . | . . . . . Ally Attacks . | . . . . . Total Damage . | . . . . . Kills . | . . . . . Allies Corrupted . | . . . . . Allies Melted . | . . . . . Intel | -11 -10 -10 -9 -9 ------- Run | Yrd Mat Min Mat Min Robot Analysis Total . | . . . . . Derelict Logs Recovered . | . . . . . Drone Launches . | . . . . . Drone Recoveries . | . . . . . Exploration | -11 -10 -10 -9 -9 ------------- Run | Yrd Mat Min Mat Min Turns Passed 1281 | 62 84 359 732 44 Spaces Moved 712 | 63 84 212 347 6 Core 42 | 22 . 19 . 1 Treads . | . . . . . Legs 276 | . . 92 179 5 Wheels 394 | 41 84 101 168 . Hover . | . . . . . Flight . | . . . . . Fastest Speed 50 | 50 80 50 80 50 Average Speed 104 | 69 80 95 122 108 Slowest Speed 190 | 80 80 120 190 120 Overloaded Moves . | . . . . . Propulsion Burnouts . | . . . . . Robots Hopped . | . . . . . Cave-ins Triggered . | . . . . . Exploration Rate (%) 18 | 6 17 34 30 3 Regions Visited 4 Branch Regions 2 Pre-discovered Areas . | . . . . . Known Exits Taken . | . . . . . Unknown Exits Taken 4 | 1 1 1 1 . Scrap Searched 1 | . . 1 . . Spaces Dug . | . . . . . Terrain Destroyed 2 | . . . . 2 Melee . | . . . . . Projectile 2 | . . . . 2 AOE . | . . . . . Terrain Rammed . | . . . . . Walls Destroyed . | . . . . . Machines Disabled . | . . . . . Actions | -11 -10 -10 -9 -9 --------- Run | Yrd Mat Min Mat Min Total 1091 | 76 90 315 583 27 Wait 207 | . . 48 151 8 Move 708 | 62 83 211 346 6 Hop . | . . . . . Pick Up 34 | 7 2 9 16 . Fast Attach 1 | . . . . 1 Attach 30 | 5 . 8 13 4 Detach 2 | . . . 2 . Swap 8 | . . 6 2 . Drop 3 | . . 1 2 . Fire 88 | 2 5 32 47 2 Melee 10 | . . . 4 6 Ram . | . . . . . Kick . | . . . . . Crush . | . . . . . Escape Stasis . | . . . . . Rewire . | . . . . . Trap . | . . . . . Miscellaneous . | . . . . . Route ------- -11/Scrapyard -10/Materials -10/Mines -9/Materials (discovered 2 exits: [*Min x2]) -9/Mines History --------- Turn | Location | Event 2 | -11/Scrapyard | Met Revision 17 48 | -11/Scrapyard | Discovered new exit (range 8) 63 | -11/Scrapyard | Entered Materials 104 | -10/Materials | Discovered new exit (range 14) 147 | -10/Materials | Entered Mines 148 | -10/Mines | Assembled infested the area 276 | -10/Mines | Lost 5 parts (1p2n2w) 316 | -10/Mines | Build established: Mutant 483 | -10/Mines | Core integrity fell below 50% 501 | -10/Mines | Discovered new exit (range 5) 506 | -10/Mines | Entered Materials 506 | -9/Materials | Evolved 2 slots: Utility x1, Weapon x1 506 | -9/Materials | Discovered new exit (range 8) 692 | -9/Materials | Discovered new exit (range 7) 886 | -9/Materials | System corruption reached 10% 916 | -9/Materials | Lost 4 parts (1n2u1w) 1166 | -9/Materials | Lost 3 parts (1p1n1w) 1238 | -9/Materials | Entered Mines 1242 | -9/Mines | Met a Derelict bent on vengeance 1247 | -9/Mines | Core integrity fell below 50% 1273 | -9/Mines | Core integrity fell below 20% 1282 | -9/Mines | Destroyed by S-10 Pest with Light Assault Rifle Last Messages --------------- H EM EGMJG#57#AAS <6JG5OTZKLW|UODBLBKH T-07 Excavator is excavating. Sml. Storage Unit destroyed. Destroyed Lgt. Ion Engine. S-10 Pest system corrupted by crushing effect. S-10 Pest knocked back. T-07 Excavator is excavating. Acquired Mining Laser. T-07 Excavator is excavating. Heat Sink destroyed. T-07 Excavator is excavating. Mining Laser destroyed. Aluminum Leg destroyed. Mace destroyed. T-07 Excavator is excavating. System corrupted: Matter fused (-5). S-10 Pest misfires. T-07 Excavator is excavating. Identified Adv. Beam Cannon. T-07 Excavator is excavating. Map ----- +----------------------------------------------------+ | ????????????????????????????????????????? | | ????????????????????????????????????????? | | ????????????????????????????????????????? | | ????????????????????????????????????????? | | ????????????????????????????????????????? | | ????????????????????????????????????????? | | ????????????????????????????????????????? | | ????????????????????????????????????????? | | ????????????????????????????????????????? | | ????????????????????????????????????????? | | ????????????????????????????????????????? | | ????????????????????????????????????????? | | ????????????????????????????????????????? | | ????????????????????????????????????????? | | ????????????????????????????????????????? | | ????????????????????????????????????????? | | ????????????????????????????????????????? | | ????????????????????????????????????????? | | ????????????????????????????????????????? | | ????????????????????????????????????????? | | ??????????????????####??????????????????? | | ??????????????????? #??????????????????? | | ???????????????????# ##???##?###????????? | | ????????????????#### #;###;# #????????? | | ????????????????# s t #????????? | | ????????????????# [s @s #????????? | | ????????????????# [% ##### # #???????? | | ????????????????# #????????????????? | | ????????????????# #????????????????? | | ????????????????########????????????????? | | ????????????????????????????????????????? | | ????????????????????????????????????????? | | | | | | | | | | | | | | | | | | | | | | | | | | | | | | | | | | | | | +----------------------------------------------------+ Best States ------------- Heat Dissipation 60 Energy Generation 10 Energy Capacity 250 Matter Stores 300 Matter Capacity 300 Sight Range 18 Robot Scan Range 14 Terrain Scan Density 10 Armor Coverage 150 Evasion (%) 55 Item Schematics ----------------- None Robot Schematics ------------------ None Fabricated ------------ Nothing Alien Tech Used ----------------- None Achievements -------------- I Survived The Infestation Power Corrupts Challenges ------------ None Game ------ Seed ChainShrapnelCapacitor Manual? 0 Play Time 00:23:28 Cumulative 3.1 hours Start 2024.12.30 @ 01:14:03 End 2024.12.30 @ 01:37:36 Sessions 1 Manual Loads 0 Difficulty Rogue Special Mode None Game No. 7 Rogue 7 Adventurer 0 Explorer 0 Win Type - Total 0 Types 0/0/0/0/0/0/0/0/0 Lore% 1 Gallery% 7 Achievement% 8 Wizard Run 0 Options --------- Layout 1 ASCII 0 Keyboard 0 Movement Mouse Keybinds 0 Fullscreen 1 Font 20/SmallcapsGlow Map View 50x35 Zoom Use 0% Tactical HUD 0 Map Filters NONE Filters NONE Steam 1 RUN: d0bcc11a-7303-41cb-b32f-8c04fef304d9